bitfinex/quotes_SOLUSD_20241229
["timestamp","ask_amount","ask_price","bid_price","bid_amount"]
[1735480573773,0.95487857,196.4,196.29,20.0]
[1735480574908,6.3841,196.41,196.3,0.69318556]
[1735480576602,6.3841,196.41,196.3,2.33528556]
[1735480577112,6.3841,196.41,196.33,20.0]
[1735480578508,6.3841,196.41,196.34,20.0]
[1735480579403,1.5454,196.42,196.35,20.0]
[1735480579602,0.95483465,196.45,196.35,20.0]
[1735480580295,0.95483465,196.45,196.32,8.72250552]
[1735480580296,0.95483465,196.45,196.34,20.0]
[1735480584683,0.95483465,196.45,196.33,20.0]
[1735480585493,23.776884,196.44,196.33,20.0]
[1735480585696,0.9548463,196.43,196.33,20.0]
[1735480586004,1.6367,196.42,196.33,20.0]
[1735480586198,0.95486429,196.41,196.3,9.67172495]
[1735480586593,0.95486429,196.41,196.33,20.0]
[1735480588007,0.95486429,196.41,196.31,20.0]
[1735480589318,0.95486429,196.41,196.32,20.0]
[1735480591615,1.6367,196.42,196.33,0.6930664]
[1735480591906,0.9546123,196.45,196.33,0.6930664]
[1735480592514,0.9546123,196.45,196.33,20.6930664]
[1735480594615,7.8005,196.46,196.33,20.6930664]
[1735480594813,7.8005,196.46,196.33,27.2130664]
[1735480596617,7.8005,196.46,196.37,20.0]
[1735480598825,0.95444631,196.49,196.37,20.0]
[1735480601427,0.95444631,196.49,196.37,21.6209]
[1735480602689,0.95442377,196.5,196.38,0.6923638]
[1735480603127,7.666,196.51,196.38,0.6923638]
[1735480605017,7.666,196.51,196.39,20.0]
[1735480605222,0.95427556,196.5,196.39,20.0]
[1735480605420,7.666,196.51,196.4,0.69212303]
[1735480609815,0.95418811,196.54,196.44,20.0]
[1735480610001,8.62008937,196.56,196.46,20.0]
[1735480610528,7.666,196.56,196.46,20.0]
[1735480611335,0.95402096,196.55,196.44,1.6209]
[1735480614120,0.95402096,196.55,196.42,20.69188107]
[1735480626639,7.666,196.56,196.46,20.0]
[1735480629041,7.666,196.56,196.46,20.69141556]
[1735480633123,0.95402434,196.55,196.46,20.0]
[1735480635249,7.666,196.56,196.46,20.0]
[1735480635958,0.95404213,196.55,196.46,20.0]
[1735480639350,7.666,196.56,196.46,20.69164244]
[1735480641456,6.666,196.56,196.46,20.69164244]
[1735480643840,6.666,196.56,196.46,20.0]
[1735480645366,0.95404369,196.55,196.46,20.0]
[1735480646268,6.0566,196.56,196.46,20.69176156]
[1735480647038,6.0566,196.56,196.47,20.0]
[1735480647445,10.0,196.59,196.48,44.46820941]
[1735480647633,10.0,196.59,196.5,23.776884]
[1735480647850,10.0,196.59,196.55,20.0]
[1735480652067,10.0,196.59,196.53,0.69066332]
[1735480652352,10.0,196.59,196.53,20.0]
[1735480653741,10.0,196.59,196.5,4.94798146]
[1735480653936,10.0,196.59,196.51,20.0]
[1735480654665,2.5368992,196.58,196.46,8.02962495]
[1735480654864,2.5368992,196.58,196.49,20.0]
[1735480655249,2.5368992,196.58,196.44,2.31111466]
[1735480656604,2.5368992,196.58,196.45,20.0]
[1735480657174,23.776884,196.57,196.45,20.0]
[1735480657341,0.95417641,196.56,196.45,20.0]
[1735480659773,0.95417641,196.56,196.46,0.69177892]
[1735480659960,2.53701335,196.58,196.46,0.69177892]
[1735480660464,2.53701335,196.58,196.46,20.69177892]
[1735480661485,1.583,196.58,196.46,20.69177892]
[1735480661773,1.583,196.58,196.4,30.68]
[1735480661974,10.0,196.59,196.42,60.68]
[1735480662483,10.0,196.59,196.44,60.68]
[1735480662667,10.0,196.59,196.45,4.59062724]
[1735480663963,10.0,196.59,196.46,20.0]
[1735480664880,10.0,196.59,196.46,21.6522]
[1735480666483,10.0,196.59,196.48,20.0]
[1735480670590,24.73069122,196.58,196.49,20.0]
[1735480670771,24.73069122,196.58,196.46,1.6522]
[1735480672075,23.776884,196.56,196.46,20.0]
[1735480672276,0.95405745,196.56,196.46,20.0]
[1735480672592,23.776884,196.55,196.42,20.0]
[1735480672971,23.776884,196.55,196.44,20.0]
[1735480673476,23.776884,196.56,196.44,20.0]
[1735480673683,24.73092647,196.56,196.44,20.0]
[1735480674067,24.73092647,196.56,196.4,4.59062724]
[1735480674563,24.73092647,196.56,196.42,20.0]
[1735480692322,24.73092647,196.56,196.39,21.5337]
[1735480692323,23.776884,196.54,196.39,21.5337]
[1735480692488,23.776884,196.52,196.42,20.0]
[1735480692822,0.95427134,196.51,196.42,20.0]
[1735480694117,6.5209,196.55,196.42,20.0]
[1735480694118,24.73114987,196.54,196.42,20.0]
[1735480694300,23.776884,196.53,196.42,20.0]
[1735480694483,0.95424282,196.52,196.42,20.0]
[1735480695527,0.95424164,196.53,196.42,20.0]
[1735480695823,24.73108853,196.54,196.42,20.0]
[1735480697813,23.776884,196.54,196.42,20.0]
[1735480699014,6.5209,196.55,196.42,20.0]
[1735480702701,6.5209,196.55,196.46,20.0]
[1735480705927,6.5209,196.55,196.45,20.0]
[1735480708022,1.6566,196.57,196.46,1.6188]
[1735480712816,1.6566,196.57,196.47,10.0]
[1735480713927,1.6566,196.57,196.5,20.0]
[1735480717032,10.0,196.59,196.5,20.0]
[1735480729851,23.776884,196.58,196.5,20.0]
[1735480730156,24.7307225,196.58,196.46,1.6188]
[1735480730455,24.7307225,196.58,196.49,20.0]
[1735480731246,24.7307225,196.58,196.46,20.0]
[1735480731247,24.7307225,196.58,196.45,20.0]
[1735480731658,24.7307225,196.58,196.45,40.0]
[1735480735260,24.7307225,196.58,196.45,20.0]
[1735480735770,10.0,196.59,196.42,9.59345763]
[1735480735771,10.0,196.59,196.46,20.0]
[1735480740473,10.0,196.59,196.5,20.0]
[1735480742145,10.0,196.59,196.51,43.776884]
[1735480744485,10.0,196.59,196.53,20.0]
[1735480752386,10.0,196.59,196.54,20.0]
[1735480755181,10.0,196.59,196.55,20.0]
[1735480755684,10.0,196.59,196.56,1.5816]
[1735480761863,10.0,196.59,196.55,20.0]
[1735480763191,10.0,196.59,196.58,20.0]
[1735480763495,10.0,196.59,196.56,43.776884]
[1735480765298,10.0,196.59,196.58,20.0]
[1735480767695,10.0,196.59,196.56,20.0]
[1735480768293,10.0,196.59,196.54,20.0]
[1735480769603,10.0,196.59,196.54,23.776884]
[1735480772303,10.0,196.59,196.53,2.01301499]
[1735480772501,10.0,196.59,196.53,20.0]
[1735480773308,10.0,196.59,196.54,20.0]
[1735480773603,10.0,196.59,196.55,20.0]
[1735480774403,10.0,196.59,196.51,10.0]
[1735480774711,10.0,196.59,196.51,4.59062724]
[1735480775082,7.8494,196.58,196.51,4.59062724]
[1735480775714,7.8494,196.58,196.49,20.0]
[1735480784711,7.8494,196.58,196.5,23.776884]
[1735480784902,7.8494,196.58,196.53,20.0]
[1735480785615,6.2499,196.58,196.53,20.0]
[1735480789023,10.0,196.59,196.53,20.0]
[1735480795830,10.0,196.59,196.53,43.776884]
[1735480796027,10.0,196.59,196.57,20.0]
[1735480809613,10.0,196.59,196.57,22.006864]
[1735480810814,10.0,196.59,196.57,20.0]
[1735480816840,10.0,196.59,196.52,4.59062724]
[1735480817042,10.0,196.59,196.51,10.0]
[1735480817252,10.0,196.59,196.51,14.59062724]
[1735480817648,10.0,196.59,196.54,20.0]
[1735480820030,10.0,196.59,196.54,24.59062724]
[1735480820349,10.0,196.59,196.55,4.59062724]
[1735480825839,10.0,196.59,196.57,23.776884]
[1735480826138,10.0,196.59,196.58,20.0]
[1735480826355,10.0,196.59,196.58,24.59062724]
[1735480828255,10.0,196.59,196.58,48.36751124]
[1735480830762,6.45,196.59,196.58,48.36751124]
[1735480832463,6.45,196.59,196.58,50.44879808]
[1735480833968,3.36,196.59,196.58,50.44879808]
[1735480834365,0.27,196.59,196.58,50.44879808]
[1735480836763,0.27,196.59,196.58,81.07879808]
[1735480837162,6.149,196.7,196.58,81.07879808]
[1735480837340,6.149,196.7,196.62,20.0]
[1735480837854,6.149,196.7,196.63,43.776884]
[1735480838969,6.149,196.7,196.67,20.0]
[1735480842570,6.149,196.7,196.69,20.0]
[1735480842781,6.4026,196.75,196.69,20.0]
[1735480844974,6.4026,196.75,196.7,43.776884]
[1735480845151,6.4026,196.75,196.7,20.0]
[1735480849594,6.4026,196.83,196.74,20.0]
[1735480850064,7.35519957,196.83,196.74,20.0]
[1735480850389,6.4026,196.83,196.74,20.0]
[1735480850574,6.4026,196.83,196.72,43.776884]
[1735480850777,6.4026,196.83,196.72,48.59862235]
[1735480854191,6.4026,196.83,196.76,20.0]
[1735480857594,6.4026,196.83,196.77,43.776884]
[1735480857791,6.4026,196.83,196.78,20.0]
[1735480860303,6.4026,196.83,196.82,20.0]
[1735480861283,6.2943,196.88,196.82,20.0]
[1735480864294,1.5693,196.94,196.83,43.776884]
[1735480864897,1.5693,196.94,196.83,48.59862235]
[1735480867092,7.33679139,196.93,196.83,24.82173835]
[1735480867491,7.33679139,196.93,196.83,20.0]
[1735480868388,6.3847,196.93,196.83,20.0]
[1735480869529,1.61,197.07,196.91,23.776884]
[1735480869804,6.3847,197.03,196.95,20.0]
[1735480873791,6.3847,197.03,196.99,20.0]
[1735480874304,6.3847,197.03,196.95,20.0]
[1735480875887,6.3847,197.03,196.99,20.0]
[1735480879008,1.61,197.07,196.99,20.0]
[1735480879397,1.61,197.07,196.99,43.776884]
[1735480881288,1.61,197.07,196.99,74.406884]
[1735480881604,6.3847,197.09,196.99,74.406884]
[1735480882699,6.3847,197.09,196.99,79.93236204]
[1735480883595,6.3847,197.09,196.99,81.44796204]
[1735480884297,6.3847,197.09,196.99,79.93236204]
[1735480886232,6.3847,197.09,197.03,20.0]
[1735480886906,6.3847,197.09,197.07,20.0]
[1735480887109,1.6177,197.12,197.07,20.0]
[1735480889241,1.6177,197.12,197.04,20.0]
[1735480889947,1.6177,197.12,196.97,2.07632397]
[1735480889948,0.11138201,197.05,196.96,30.0]
[1735480890305,0.11138201,197.05,197.02,20.0]
[1735480891413,0.11138201,197.05,197.03,20.0]
[1735480892243,0.11138201,197.05,197.02,20.0]
[1735480893313,0.11138201,197.05,197.03,23.776884]
[1735480893950,0.11138201,197.05,197.02,20.0]
[1735480896153,0.11138201,197.05,197.03,2.03314]
[1735480898834,0.11138201,197.05,196.97,20.0]
[1735480899032,0.11138201,197.05,196.94,1.5156]
[1735480899033,1.75248201,197.05,196.94,1.5156]
[1735480899238,6.0722,197.04,196.98,2.033559]
[1735480900356,6.0722,197.04,196.98,22.033559]
[1735480900677,6.0722,197.04,196.98,2.033559]
[1735480901281,6.0722,197.04,196.99,20.0]
[1735480901479,6.0722,197.04,197.03,20.0]
[1735480901961,6.0722,197.04,197.01,20.0]
[1735480902270,0.11138201,197.05,197.01,20.0]
[1735480903668,0.11138201,197.05,197.04,20.0]
[1735480903980,0.11138201,197.05,197.04,43.776884]
[1735480905975,0.11138201,197.05,197.0,12.6898]
[1735480906152,0.11138201,197.05,197.03,20.0]
[1735480907398,0.11138201,197.05,197.04,43.776884]
[1735480907570,0.11138201,197.05,197.04,23.776884]
[1735480908265,0.11138201,197.05,197.03,20.0]
[1735480908585,0.11138201,197.05,197.04,43.776884]
[1735480909671,0.11138201,197.05,197.04,74.406884]
[1735480909990,0.21295338,197.05,197.04,43.776884]
[1735480910868,0.10157137,197.05,197.04,43.776884]
[1735480912895,0.09587916,197.07,197.06,84.406884]
[1735480915009,7.916e-05,197.07,197.06,92.20188089]
[1735480915305,6.603,197.22,197.09,80.63]
[1735480915683,6.603,197.22,197.09,104.406884]
[1735480916302,6.603,197.22,197.09,43.776884]
[1735480916510,6.71458095,197.14,197.05,35.52547804]
[1735480916824,6.71458095,197.14,197.05,30.0]
[1735480917304,6.71458095,197.14,197.09,20.0]
[1735480917679,6.71458095,197.14,197.05,30.0]
[1735480919281,6.71458095,197.14,197.09,23.776884]
[1735480920304,6.71458095,197.14,197.09,20.0]
[1735480920507,6.71458095,197.14,197.01,30.0]
[1735480920804,6.71458095,197.14,197.02,23.776884]
[1735480921100,6.71458095,197.14,197.04,20.0]
[1735480921401,6.71458095,197.14,197.01,30.0]
[1735480922311,6.71458095,197.14,197.05,43.776884]
[1735480925183,6.71458095,197.14,197.0,30.0]
[1735480925399,6.71458095,197.14,197.04,30.0]
[1735480925582,6.71458095,197.14,197.09,20.0]
[1735480926285,6.71458095,197.14,197.09,43.776884]
[1735480929388,0.11158095,197.14,197.09,23.776884]
[1735480930303,0.11158095,197.14,197.1,53.776884]
[1735480930799,6.6415,197.19,197.1,53.776884]
[1735480930800,6.6415,197.19,197.13,20.0]
[1735480931013,6.6415,197.19,197.14,20.0]
[1735480931807,6.6415,197.19,197.15,20.0]
[1735480932399,6.6415,197.19,197.14,20.0]
[1735480933903,6.6415,197.19,197.05,37.93984876]
[1735480934087,6.6415,197.19,197.06,23.776884]
[1735480934288,6.6415,197.19,197.05,30.0]
[1735480934496,6.6415,197.19,197.1,20.0]
[1735480935612,6.6415,197.19,197.08,23.776884]
[1735480937015,6.6415,197.19,197.09,20.0]
[1735480937411,6.6415,197.19,197.1,20.0]
[1735480938435,6.6415,197.19,197.12,20.0]
[1735480939508,6.6415,197.19,197.16,20.0]
[1735480940815,6.5758,197.24,197.17,20.0]
[1735480942604,6.5758,197.24,197.1,1.6188]
[1735480943016,0.95072331,197.23,197.1,1.6188]
[1735480943724,0.95077019,197.23,197.14,20.0]
[1735480944027,0.95077019,197.23,197.07,30.0]
[1735480944316,0.95077019,197.23,197.11,20.0]
[1735480944823,14.1807,197.24,197.11,20.0]
[1735480945031,14.1807,197.24,197.13,20.0]
[1735480947418,6.5758,197.24,197.13,20.0]
[1735480947617,7.52654481,197.24,197.13,20.0]
[1735480949729,7.52654481,197.24,197.15,20.0]
[1735480949927,6.5758,197.24,197.15,20.0]
[1735480951634,6.5758,197.24,197.13,20.0]
[1735480953922,6.5758,197.24,197.15,20.0]
[1735480955042,0.95074498,197.23,197.14,20.0]
[1735480955829,7.52657098,197.24,197.14,20.0]
[1735480959850,7.52657098,197.24,197.07,31.6188]
[1735480960150,6.0504,197.22,197.06,15.89423472]
[1735480960450,6.0504,197.19,197.06,15.89423472]
[1735480960662,0.95107688,197.18,197.06,15.89423472]
[1735480961318,0.95107688,197.18,197.03,30.0]
[1735480961623,0.95107688,197.18,197.09,20.0]
[1735480962142,0.95107688,197.18,197.03,30.0]
[1735480962143,0.95107688,197.18,197.06,20.0]
[1735480962722,0.95107688,197.18,197.08,20.0]
[1735480964353,7.71,197.17,197.04,15.89423472]
[1735480964520,0.95119641,197.16,197.07,20.0]
[1735480965034,15.3177,197.17,197.07,50.0]
[1735480965035,7.71,197.17,197.07,50.0]
[1735480967343,6.0504,197.22,197.14,20.0]
[1735480967549,6.0504,197.22,197.13,20.0]
[1735480968442,0.95082796,197.21,197.12,20.0]
[1735480968643,7.00122796,197.22,197.14,20.0]
[1735480968850,6.0504,197.22,197.14,20.0]
[1735480971437,6.0504,197.22,197.18,20.0]
[1735480975769,8.5548939,197.27,197.18,20.0]
[1735480976775,6.96890332,197.28,197.18,20.0]
[1735480976989,6.0183,197.28,197.18,50.0]
[1735480977848,6.0183,197.28,197.23,20.0]
[1735480978247,0.56320442,197.3,197.25,20.0]
[1735480978658,0.56320442,197.3,197.25,50.0]
[1735480980689,0.56320442,197.3,197.19,15.89423472]
[1735480980690,0.56320442,197.3,197.26,20.0]
[1735480980864,0.56320442,197.3,197.19,15.89423472]
[1735480981094,0.56320442,197.3,197.2,30.0]
[1735480982085,0.56320442,197.3,197.22,20.0]
[1735480983387,0.95041259,197.29,197.21,20.0]
[1735480984263,1.51368067,197.3,197.21,20.0]
[1735480985778,7.603,197.29,197.19,20.0]
[1735480986080,0.95057512,197.28,197.19,20.0]
[1735480986263,7.9482,197.27,197.14,45.89423472]
[1735480986463,0.9506355,197.26,197.17,20.0]
[1735480988279,0.9506355,197.26,197.16,20.0]
[1735480988481,0.9506355,197.26,197.13,1.529]
[1735480989089,0.9506355,197.26,197.11,47.66846918]
[1735480989090,7.6045,197.25,197.11,47.66846918]
[1735480989265,0.95083181,197.24,197.11,47.66846918]
[1735480989595,0.95083181,197.24,197.13,20.0]
[1735480990480,0.95083181,197.24,197.1,45.89423472]
[1735480990804,0.95083181,197.24,197.1,15.89423472]
[1735480991106,8.5562404,197.23,197.13,20.0]
[1735480991874,8.5562404,197.23,197.12,20.0]
[1735480992475,6.6621,197.22,197.12,20.0]
[1735480992700,8.55709028,197.21,197.12,20.0]
[1735480993174,8.55709028,197.21,197.08,1.6633]
[1735480993677,8.55709028,197.21,197.1,20.0]
[1735480993872,1.6109,197.2,197.1,20.0]
[1735480994076,7.6072,197.18,197.07,15.89423472]
[1735480994296,0.95114475,197.17,197.06,15.89423472]
[1735480994775,6.6621,197.16,197.06,15.89423472]
[1735480994978,0.95117799,197.15,197.06,15.89423472]
[1735480995210,0.95117799,197.15,197.09,20.0]
[1735480995706,6.6621,197.16,197.07,20.0]
[1735480995881,1.6109,197.2,197.13,20.0]
[1735480998506,0.95090252,197.19,197.08,15.89423472]
[1735480999200,2.56195787,197.2,197.11,20.0]
[1735480999514,1.6109,197.2,197.11,20.0]
[1735481000418,0.95094481,197.19,197.11,20.0]
[1735481000578,0.95094481,197.19,197.07,47.66846918]
[1735481001208,0.95094481,197.19,197.1,20.0]
[1735481001401,8.55774481,197.19,197.1,20.0]
[1735481001797,8.55774481,197.19,197.07,50.0]
[1735481002100,8.55774481,197.19,197.08,20.0]
[1735481004293,8.55774481,197.19,197.06,23.776884]
[1735481005182,8.55774481,197.19,197.05,23.776884]
[1735481005601,8.55774481,197.19,197.04,15.89423472]
[1735481006505,8.55774481,197.19,197.08,20.0]
[1735481007002,23.77144481,197.19,197.08,20.0]
[1735481007880,23.77144481,197.19,197.03,17.48323472]
[1735481008080,23.77144481,197.19,197.06,20.0]
[1735481008377,23.77144481,197.19,197.07,20.0]
[1735481009105,23.77144481,197.19,197.03,1.589]
[1735481009285,23.77144481,197.19,197.05,20.0]
[1735481009788,23.77144481,197.19,197.07,20.0]
[1735481010000,8.55774481,197.19,197.08,43.776884]
[1735481010397,8.55774481,197.19,197.03,1.589]
[1735481010706,23.77144481,197.19,197.06,20.0]
[1735481010906,23.77144481,197.19,197.1,20.0]
[1735481011213,8.55774481,197.19,197.1,20.0]
[1735481012802,8.55774481,197.19,197.14,20.0]
[1735481017605,8.55774481,197.19,197.14,18.511]
[1735481019911,7.6068,197.19,197.14,18.511]
[1735481021312,0.95096886,197.18,197.14,18.511]
[1735481021624,8.55781629,197.19,197.14,18.511]
[1735481023037,7.6068,197.19,197.14,18.511]
[1735481023334,6.6621,197.21,197.18,20.0]
[1735481023518,7.6057,197.22,197.18,20.0]
[1735481024702,0.95078757,197.21,197.12,21.6525]
[1735481025217,0.95078757,197.21,197.16,20.0]
[1735481025698,7.6057,197.22,197.16,20.0]
[1735481029646,0.9507828,197.21,197.16,20.0]
[1735481029807,7.6057,197.22,197.16,20.0]
[1735481032646,10.16918997,197.25,197.17,23.776884]
[1735481032817,10.16918997,197.25,197.2,20.0]
[1735481033409,9.2184,197.25,197.2,20.0]
[1735481034635,7.48367336,197.26,197.2,20.0]
[1735481034939,6.533,197.26,197.2,20.0]
[1735481035139,7.6035,197.28,197.24,20.0]
[1735481038324,2.17700442,197.3,197.24,20.0]
[1735481042243,8.55339798,197.29,197.24,20.0]
[1735481043247,7.603,197.29,197.24,20.0]
[1735481043548,1.51371779,197.3,197.24,20.0]
[1735481043721,0.56320442,197.3,197.24,20.0]
[1735481045742,0.56320442,197.3,197.25,43.776884]
[1735481050058,0.56320442,197.3,197.26,30.0]
[1735481050259,0.56320442,197.3,197.29,43.776884]
[1735481051758,0.56320442,197.3,197.29,75.364484]
[1735481053357,0.56320442,197.3,197.29,45.364484]
[1735481053857,0.56320442,197.3,197.29,75.364484]
[1735481061262,0.56320442,197.3,197.29,105.994484]
[1735481061441,0.56320442,197.3,197.29,75.364484]
[1735481064767,6.0225,197.43,197.39,20.0]
[1735481064952,13.7087,197.48,197.43,20.0]
[1735481067869,13.7087,197.48,197.41,20.0]
[1735481071283,7.5964,197.46,197.36,30.0]
[1735481071447,0.94970215,197.45,197.34,30.0]
[1735481074081,0.94970215,197.45,197.38,20.0]
[1735481075473,7.5964,197.46,197.38,20.0]
[1735481076451,0.94970196,197.45,197.38,20.0]
[1735481076775,0.94970196,197.45,197.34,30.0]
[1735481077075,0.94970115,197.44,197.37,20.0]
[1735481077249,0.94981575,197.47,197.39,23.776884]
[1735481077449,6.1128,197.48,197.42,20.0]
[1735481079250,13.7087,197.48,197.39,20.0]
[1735481079571,0.94951103,197.47,197.39,20.0]
[1735481079774,0.94951103,197.47,197.32,30.0]
[1735481080584,11.72404565,197.46,197.3,30.0]
[1735481080880,7.7908,197.44,197.28,30.0]
[1735481081080,0.95001819,197.43,197.28,30.0]
[1735481081251,0.95001819,197.43,197.32,20.0]
[1735481081446,7.598,197.42,197.32,20.0]
[1735481081688,0.94997683,197.41,197.32,20.0]
[1735481082482,0.94997683,197.41,197.29,23.776884]
[1735481082868,7.5987,197.4,197.32,20.0]
[1735481083074,0.95001808,197.39,197.32,20.0]
[1735481083383,7.5987,197.4,197.32,20.0]
[1735481083585,0.9499904,197.39,197.32,20.0]
[1735481085187,7.5995,197.38,197.26,30.0]
[1735481085483,6.2522,197.36,197.24,31.5972]
[1735481085693,0.95023155,197.35,197.27,20.0]
[1735481085860,6.2522,197.36,197.31,20.0]
[1735481087383,6.2522,197.36,197.29,20.0]
[1735481087595,0.95011893,197.35,197.29,20.0]
[1735481088091,13.8528,197.36,197.29,20.0]
[1735481088589,6.2522,197.36,197.29,20.0]
[1735481088791,6.2522,197.36,197.31,20.0]
[1735481088996,6.2522,197.4,197.36,20.0]
[1735481091572,0.949809,197.45,197.37,20.0]
[1735481091893,14.79841829,197.46,197.37,20.0]
[1735481094089,14.79841829,197.46,197.39,20.0]
[1735481095194,14.79841829,197.46,197.34,30.0]
[1735481095370,14.79841829,197.46,197.37,20.0]
[1735481102894,14.79841829,197.46,197.3,30.0]
[1735481103081,29.99131829,197.46,197.3,30.0]
[1735481104498,29.99131829,197.46,197.34,20.0]
[1735481106236,29.99131829,197.46,197.28,30.0]
[1735481106393,22.7916,197.44,197.31,20.0]
[1735481106603,0.95000819,197.43,197.31,20.0]
[1735481106900,7.6404,197.42,197.29,23.776884]
[1735481107099,0.95007154,197.41,197.29,23.776884]
[1735481107305,0.95007154,197.41,197.26,31.5972]
[1735481107481,0.95007154,197.41,197.29,20.0]
[1735481108095,0.95007154,197.41,197.26,1.5972]
[1735481108501,6.0248,197.39,197.25,20.0]
[1735481108805,0.95026695,197.38,197.26,23.776884]
[1735481109205,0.95026695,197.38,197.3,20.0]
[1735481111703,8.55006695,197.38,197.25,30.0]
[1735481112405,8.55006695,197.38,197.27,20.0]
[1735481112779,1.5888,197.37,197.27,20.0]
[1735481112982,0.95030609,197.36,197.26,20.0]
[1735481113781,7.6007,197.35,197.22,1.6191]
[1735481113983,6.1648,197.33,197.18,31.5183]
[1735481114281,0.95051427,197.32,197.18,31.5183]
[1735481114474,0.95051427,197.32,197.22,20.0]
[1735481117006,7.6022,197.31,197.23,20.0]
[1735481117698,6.1648,197.33,197.25,20.0]
[1735481118012,2.53902914,197.37,197.29,20.0]
[1735481120415,1.5888,197.37,197.29,20.0]
[1735481120715,1.5888,197.37,197.3,20.0]
[1735481121306,6.1648,197.38,197.32,20.0]
[1735481121498,7.5984,197.41,197.34,20.0]
[1735481122811,6.1669,197.43,197.36,20.0]
[1735481123019,6.1669,197.47,197.38,20.0]
[1735481123325,7.11655177,197.47,197.38,20.0]
[1735481124121,7.11655177,197.47,197.36,23.776884]
[1735481124631,14.71265177,197.47,197.36,23.776884]
[1735481126320,14.71265177,197.47,197.38,20.0]
[1735481127515,14.71265177,197.47,197.42,20.0]
[1735481127716,6.1669,197.47,197.42,20.0]
[1735481130831,6.1669,197.47,197.4,20.0]
[1735481131001,7.1164676,197.47,197.4,20.0]
[1735481131501,14.7127676,197.47,197.38,20.0]
[1735481132235,18.5335937,197.47,197.38,20.0]
[1735481134227,14.7127676,197.47,197.38,20.0]
[1735481134432,13.7632,197.47,197.38,20.0]
[1735481135932,0.94961098,197.46,197.38,20.0]
[1735481136143,0.94965506,197.46,197.38,20.0]
[1735481136317,0.94965506,197.46,197.26,2.04782979]
[1735481136318,8.54455712,197.51,197.42,20.0]
[1735481139306,7.5949,197.51,197.46,20.0]
[1735481140515,6.19487584,197.52,197.46,20.0]
[1735481141436,0.94922578,197.57,197.5,20.0]
[1735481141738,4.96297052,197.57,197.5,20.0]
[1735481141936,0.94913051,197.56,197.48,20.0]
[1735481142138,5.91215985,197.57,197.48,20.0]
[1735481142341,5.91215985,197.57,197.5,20.0]
[1735481142636,4.96297052,197.57,197.49,43.776884]
[1735481143034,5.91205266,197.57,197.49,43.776884]
[1735481143232,4.96297052,197.57,197.49,43.776884]
[1735481143731,5.91207038,197.57,197.49,43.776884]
[1735481144504,4.96297052,197.57,197.49,43.776884]
[1735481144709,5.91209573,197.57,197.49,43.776884]
[1735481145234,4.96297052,197.57,197.49,43.776884]
[1735481149845,9.80707231,197.56,197.49,20.0]
[1735481150140,8.858,197.56,197.5,20.0]
[1735481151021,6.549,197.58,197.52,20.0]
[1735481153014,8.8568,197.59,197.54,20.0]
[1735481155145,15.99929393,197.62,197.54,20.0]
[1735481155346,15.05037584,197.62,197.54,20.0]
[1735481156145,6.19487584,197.62,197.54,20.0]
[1735481156354,18.84537584,197.62,197.54,20.0]
[1735481157145,18.84537584,197.62,197.51,30.0]
[1735481157450,18.84537584,197.62,197.52,23.776884]
[1735481157641,18.84537584,197.62,197.56,20.0]
[1735481158427,3.07579597,197.75,197.7,20.0]